Cogmind - Beta 14 @@@ ROGUE MODE // 2024.11.02 @ 14:02:20 Player: Kate+Gabe4evr Result: Destroyed by as-29498 with Assembled Heavy Rifle Performance ------------- Evolutions (4) 2000 Regions Visited (10) 2000 Robots Destroyed (31) 155 Value Destroyed (908) 908 Prototype IDs (12) 240 Alien Tech Used (0) 0 Bonus (2401) 2401 TOTAL SCORE: 7704 Bonus ------- Follower Combat Kills 238 Aligned with FarCom 300 Destroyed Z-Imprinter 1000 Triggered Deep Caves Wall 500 Exposed GOLEM Chamber 500 Friendly Fire -137 Cogmind --------- Core Integrity 0/850 Matter 135/300 Energy 100/100 System Corruption 0% Temperature Cool (0) Movement Core (1400) Ox27 Location -6/Deep Caves Parts ------- > --- POWER (2) -------- (None) > --- PROPULSION (3) --- (None) > --- UTILITY (7) ------ Huge Storage Unit Experimental Optical Array Improved Armor Integrity Analyzer > --- WEAPON (3) ------- Heavy Pick > --- INVENTORY (25) --- Small Storage Unit Improved Terrain Scanner Advanced Terrain Scan Processor Weapon Cycler Makeshift Transmission Jammer Advanced Hacking Suite Plasma Cutter Peak State ------------ > --- POWER ------------ Makeshift Power Source Zionite Light DM Reactor > --- PROPULSION ------- Wheel Wheel Compact Wheel > --- UTILITY ---------- Experimental Heat Sink Huge Storage Unit Experimental Optical Array Improved Armor Integrity Analyzer Zionite Weapon Casing Hardened Heavy Armor Plating > --- WEAPON ----------- AWS/Gauss Bore Cannon > --- INVENTORY -------- Light Nuclear Core Wheel Compact Wheel Armored Huge Wheel Small Storage Unit Improved Terrain Scanner Advanced Terrain Scan Processor Weapon Cycler Makeshift Transmission Jammer Improved Propulsion Shielding Hardened Heavy Armor Plating Makeshift Light Armor Plating Advanced Hacking Suite High-powered Tractor Beam Heavy Beamcaster Heavy Beamcaster High-powered Shotgun Heavy Battle Rifle Gauss Cannon Proton Missile Launcher Plasma Cutter Longsword +1 Heavy Pick [Rating: 82] Favorites ----------- Power Light Nuclear Core Engine Makeshift Power Source Power Core Light Nuclear Core Reactor Zionite Light DM Reactor Propulsion Wheel Wheel Wheel Utility Huge Storage Unit Device Advanced Heat Sink Storage Huge Storage Unit Processor Improved Armor Integrity Analyzer Protection Improved Propulsion Shielding Weapon AWS/Gauss Energy Gun EM Pulse Gun Energy Cannon Heavy Particle Cannon Ballistic Gun AWS/Gauss Ballistic Cannon Bore Cannon Launcher Proton Missile Launcher Special Weapon Plasma Cutter Slashing Weapon Longsword +1 Piercing Weapon Heavy Pick Build | -11 -10 -10 -10 -9 -8 -7 -6 -6 -6 -6 ------- Run | Yrd Mat Min Exi Min Mat Fac Fac Low Zio Dee Slots Evolved 8 | . . . . . 4 2 2 . . . Power 1 | . . . . . . 1 . . . . Propulsion 1 | . . . . . 1 . . . . . Utility 5 | . . . . . 3 1 1 . . . Weapon 1 | . . . . . . . 1 . . . Parts Attached 84 | 6 4 1 2 2 10 7 6 2 10 34 Power 12 | 1 1 . . . . 3 1 1 1 4 Engine 4 | 1 . . . . . 1 1 . 1 . Core 4 | . 1 . . . . 2 . 1 . . Reactor 4 | . . . . . . . . . . 4 Propulsion 12 | 2 1 1 . . 3 2 . . . 3 Treads . | . . . . . . . . . . . Leg . | . . . . . . . . . . . Wheel 12 | 2 1 1 . . 3 2 . . . 3 Hover . | . . . . . . . . . . . Flight . | . . . . . . . . . . . Utility 26 | 1 2 . . . 5 1 3 . 2 12 Device 9 | . . . . . 1 . 2 . . 6 Storage 2 | 1 1 . . . . . . . . . Processor 3 | . . . . . 1 . . . 2 . Hackware . | . . . . . . . . . . . Protection 12 | . 1 . . . 3 1 1 . . 6 Artifact . | . . . . . . . . . . . Weapon 34 | 2 . . 2 2 2 1 2 1 7 15 Energy Gun 5 | 1 . . . . . . 1 . . 3 Energy Cannon 3 | . . . . . 1 . . . . 2 Ballistic Gun 9 | 1 . . 1 2 1 . 1 1 . 2 Ballistic Cannon 8 | . . . . . . 1 . . 4 3 Launcher 2 | . . . . . . . . . . 2 Special Weapon 3 | . . . . . . . . . 2 1 Impact Weapon . | . . . . . . . . . . . Slashing Weapon 2 | . . . 1 . . . . . . 1 Piercing Weapon 2 | . . . . . . . . . 1 1 Special Melee Weapon . | . . . . . . . . . . . Unidentified Prototypes 12 | . . . 2 . . 1 . . 1 8 Parts Lost 27 | . . . . . 1 . . . . 26 Power 3 | . . . . . . . . . . 3 Propulsion 6 | . . . . . . . . . . 6 Utility 9 | . . . . . 1 . . . . 8 Weapon 9 | . . . . . . . . . . 9 Highest Loss Streak 26 | . . . . . 1 . . . . 26 To Critical Strikes . | . . . . . . . . . . . Average Slot Usage (%) 82 | . 93 100 71 77 85 76 79 85 86 83 Engine 3 | . 5 . . . . 4 2 5 5 2 Core 7 | . 8 14 14 14 9 9 9 6 6 1 Reactor 1 | . . . . . . . . . . 7 Wheel 22 | . 28 28 28 28 27 23 20 20 20 18 Device 5 | . . . . . 5 . 7 13 7 5 Storage 8 | . 14 14 14 14 9 7 6 6 6 6 Processor 7 | . . . . . 1 7 6 6 11 13 Protection 12 | . 8 14 14 14 15 7 11 13 13 11 Energy Gun 1 | . 14 14 . . . . 5 1 . . Energy Cannon 1 | . . . . . 7 7 . . . 3 Ballistic Gun 6 | . 14 14 . 6 10 3 6 11 10 2 Ballistic Cannon 2 | . . . . . . 3 . . 1 8 Peak Build Rating 82 | 6 9 10 26 13 35 38 65 65 72 82 Average Rating 49 | 4 7 9 9 12 24 34 58 63 68 72 On Entrance 28 | . 6 9 10 12 13 35 37 65 61 69 Naked Turns . | . . . . . . . . . . . Heaviest Build 153 | 14 92 92 91 92 118 123 132 132 131 153 Greatest Support 44 | 20 20 20 20 20 30 36 36 36 36 44 Greatest Overweight (x) 27 | . 4 4 4 4 3 4 3 3 3 27 Average Overweight (x) 3 | . 2 4 4 4 3 3 3 3 3 3 Largest Inventory Capacity 25 | 8 25 25 25 25 25 25 25 25 25 25 Average Capacity 24 | 7 17 25 25 25 25 25 25 25 25 25 Most Carried 25 | 2 8 10 16 16 24 25 25 25 25 25 Average Carried 20 | 1 5 9 12 15 19 24 24 24 24 22 Final Capacity 25 | 8 25 25 25 25 25 25 25 25 25 25 Final Carried 25 | 2 8 10 16 14 24 25 25 24 25 7 Class Distribution -------------------- 58% | Scavenger-Tank 33% | Mutant 4% | Skirmisher Dominant Class ---------------- Mutant | -10/Materials Mutant | -10/Mines Mutant | -10/Exiles Mutant | -9/Mines Skirmisher | -8/Materials Scavenger-Mutant | -7/Factory Scavenger-Tank | -6/Factory Scavenger-Tank | -6/Lower Caves Scavenger-Tank | -6/Zion Scavenger-Tank | -6/Deep Caves Resources | -11 -10 -10 -10 -9 -8 -7 -6 -6 -6 -6 ----------- Run | Yrd Mat Min Exi Min Mat Fac Fac Low Zio Dee Matter Collected 1570 | 218 106 32 . 19 198 111 66 50 78 692 Remotely 97 | . . . . . . . . . . 97 Salvage Created 1581 | . 177 66 . 19 154 148 113 202 . 702 Parts 84 | . 8 11 . 3 7 8 3 9 . 35 Haulers Intercepted . | . . . . . . . . . . . Recyclers Shooed 1 | . . . . . . . 1 . . . Parts Field Recycled . | . . . . . . . . . . . Retrieved Matter . | . . . . . . . . . . . Parts Self-Destructed 11 | . . . . . . . . 11 . . Prevented . | . . . . . . . . . . . Kills | -11 -10 -10 -10 -9 -8 -7 -6 -6 -6 -6 ------- Run | Yrd Mat Min Exi Min Mat Fac Fac Low Zio Dee Combat Hostiles Destroyed 52 | . 4 3 . 1 3 1 2 9 . 29 Melee 15 | . . . . . . . . . . 15 Guns 31 | . 4 3 . 1 2 . 2 9 . 10 Cannons 4 | . . . . . 1 1 . . . 2 AOE 2 | . . . . . . . . . . 2 Classes Destroyed 10 | . 1 2 . . 2 2 . . . 3 Worker 2 | . . 1 . . . 1 . . . . Recycler 1 | . . . . . . 1 . . . . Mechanic 1 | . . . . . 1 . . . . . Swarmer 13 | . . 3 . 1 . . . 9 . . Grunt 8 | . 4 . . . 2 . 2 . . . Sentry 1 | . . . . . 1 . . . . . Hunter 1 | . . . . . . 1 . . . . Z-Technician 5 | . . . . . . . . . . 5 Z-Light 3 | . . . . . . . . . . 3 Assembled 25 | . . . . . . . . . . 25 Best Kill Streak 10 | . 4 4 . 1 2 2 2 4 . 10 Combat Bots Only 10 | . 4 3 . 1 2 1 2 4 . 10 Max Kills in Single Turn 2 | . 1 1 . 1 1 1 2 2 . 2 Gunslinging 1 | . . . . . . . . . . 1 Exploded 2 | . . . . . . . . . . 2 Melee 1 | . . . . . . . . . . 1 Uniques/NPCs Destroyed 1 | . . . . . . . . . . 1 Z-Imprinter (-6/Deep Caves) Combat | -11 -10 -10 -10 -9 -8 -7 -6 -6 -6 -6 -------- Run | Yrd Mat Min Exi Min Mat Fac Fac Low Zio Dee Hostile Shots Fired 313 | . 11 12 . 4 19 . 1 23 . 243 Missed 62 | . . 2 . 1 2 . 1 3 . 53 Damage Taken 5749 | . 198 77 . 27 262 . . 276 . 4909 Core 976 | . 70 14 . . 35 . . 41 . 816 Absorbed by Shields . | . . . . . . . . . . . Redirected to Shielding 232 | . . . . . 16 . . . . 216 Regen/Repaired (Parts) 280 | . . . . . . . . . 280 . Core Remaining (%) 89 | 100 . . . 66 93 100 . . . . Volleys Fired 141 | . 8 7 . 2 11 3 3 13 9 85 Largest 3 | . 2 2 . 2 2 2 2 1 1 3 Hottest 195 | . 60 60 . 40 100 123 123 75 20 195 Shots Fired 261 | . 16 14 . 5 20 6 7 45 9 139 Gun 147 | . 16 14 . 5 11 1 5 45 . 50 Cannon 103 | . . . . . 9 5 2 . . 87 Launcher 2 | . . . . . . . . . . 2 Special 9 | . . . . . . . . . 9 . Kinetic 207 | . 8 7 . 5 11 3 4 44 . 125 Thermal 37 | . . . . . 9 3 3 1 9 12 Explosive . | . . . . . . . . . . . Electromagnetic 17 | . 8 7 . . . . . . . 2 Robot Hit Streak 16 | . 11 12 . 2 9 2 6 16 . 5 Robot Miss Streak 10 | . 2 2 . 2 2 1 1 2 . 10 Penetration Max . | . . . . . . . . . . . Secondary Targets 3 | . . . . . . . . . . 3 Max Gunslinging Chain 1 | . . . . . . . . . . 1 Autonomous 68 | . . . . . . . 3 32 . 33 Shots Hit Robots 176 | . 12 6 . 2 14 3 6 36 . 97 Core Hits 88 | . 9 4 . 1 6 3 5 14 . 46 Critical Kills 6 | . . . . . . . . . . 6 Critical Parts Destroyed 8 | . . . . . 1 . . . . 7 Critical Strikes 14 | . . . . . 1 . . . . 13 Destroy 14 | . . . . . 1 . . . . 13 Melee Attacks 40 | . . . . . . . . . 1 39 Impact . | . . . . . . . . . . . Slashing 32 | . . . . . . . . . . 32 Piercing 8 | . . . . . . . . . 1 7 Sneak Attacks . | . . . . . . . . . . . Combat Hostiles . | . . . . . . . . . . . Follow-up Attacks . | . . . . . . . . . . . Damage Inflicted 5505 | . 145 86 . 15 351 56 216 960 . 3676 Guns 2500 | . 145 86 . 15 126 11 189 960 . 968 Cannons 1195 | . . . . . 225 45 27 . . 898 Explosions 125 | . . . . . . . . . . 125 Melee 1685 | . . . . . . . . . . 1685 Ramming . | . . . . . . . . . . . Kinetic 3074 | . 68 50 . 15 126 31 171 938 . 1675 Thermal 508 | . . . . . 225 25 45 22 . 191 Explosive . | . . . . . . . . . . . Electromagnetic 238 | . 77 36 . . . . . . . 125 Impact . | . . . . . . . . . . . Slashing 1568 | . . . . . . . . . . 1568 Piercing 117 | . . . . . . . . . . 117 Highest Corruption 4 | . 4 4 4 4 . 1 . . . . Average Corruption 3 | . 3 4 4 4 . 1 . . . . Corruption Purged . | . . . . . . . . . . . Corruption Blocked . | . . . . . . . . . . . Effects 24 | . 2 1 17 4 . . . . . . Message Errors 6 | . . . 6 . . . . . . . Matter Fused 6 | . 1 1 3 1 . . . . . . Heat Flow Errors 2 | . . . 1 1 . . . . . . Energy Discharges 4 | . 1 . 2 1 . . . . . . Data Loss (minor) 3 | . . . 3 . . . . . . . Misfires 1 | . . . . 1 . . . . . . Alerts 2 | . . . 2 . . . . . . . Overload Shots . | . . . . . . . . . . . Overflow Damage 249 | . . . . . . . . . . 249 Projectiles 27 | . . . . . . . . . . 27 Explosions . | . . . . . . . . . . . Melee 222 | . . . . . . . . . . 222 Knockbacks 3 | . . . . . . . . . . 3 Impact . | . . . . . . . . . . . Kinetic 2 | . . . . . . . . . . 2 Secondary 1 | . . . . . . . . . . 1 Self-Inflicted Damage 9 | . . . . . . . . . . 9 Shots 1 | . . . . . . . . . . 1 Rammed . | . . . . . . . . . . . Targets Rammed . | . . . . . . . . . . . Kicked . | . . . . . . . . . . . Crushed . | . . . . . . . . . . . Highest Temperature 378 | . 63 90 269 185 264 174 84 10 . 378 Average Temperature 78 | . 38 42 239 132 105 73 35 7 . 80 Received Heat Transfer 1352 | . 96 . . . 90 . . . . 1166 Siege Activations . | . . . . . . . . . . . Robots Corrupted . | . . . . . . . . . . . Combat Hostiles . | . . . . . . . . . . . Parts Fried . | . . . . . . . . . . . Impact Corruptions . | . . . . . . . . . . . Robots Melted . | . . . . . . . . . . . Combat Hostiles . | . . . . . . . . . . . Parts Melted 2 | . . . . . 2 . . . . . Heat Transferred 779 | . . . . . 333 37 100 50 . 259 Parts Sabotaged . | . . . . . . . . . . . Parts Stolen 1 | . . . . . . . . 1 . . Parts Stripped . | . . . . . . . . . . . Power Chain Reactions . | . . . . . . . . . . . Alert | -11 -10 -10 -10 -9 -8 -7 -6 -6 -6 -6 ------- Run | Yrd Mat Min Exi Min Mat Fac Fac Low Zio Dee Peak Influence 179 | . 115 134 . 50 179 42 88 . . . Initial 44 | . . 44 . . 19 . 20 . . . Average 55 | . 83 126 . 9 74 20 49 . . . Maximum Alert Level . | . . . . . . . . . . . Low Security (%) 100 | 100 100 100 . 100 100 100 100 . . . Level 1 . | . . . . . . . . . . . Level 2 . | . . . . . . . . . . . Level 3 . | . . . . . . . . . . . Level 4 . | . . . . . . . . . . . Level 5 . | . . . . . . . . . . . High Security . | . . . . . . . . . . . Max Security . | . . . . . . . . . . . Squads Dispatched 3 | . 1 . . . . 1 1 . . . Investigation . | . . . . . . . . . . . Extermination . | . . . . . . . . . . . Reinforcement 3 | . 1 . . . . 1 1 . . . Assault . | . . . . . . . . . . . Garrison . | . . . . . . . . . . . Intercept . | . . . . . . . . . . . Searches Triggered . | . . . . . . . . . . . Construction Impeded . | . . . . . . . . . . . Haulers Reinforced . | . . . . . . . . . . . Active Scanning Responses . | . . . . . . . . . . . Cargo Convoy Interrupts . | . . . . . . . . . . . Stealth | -11 -10 -10 -10 -9 -8 -7 -6 -6 -6 -6 --------- Run | Yrd Mat Min Exi Min Mat Fac Fac Low Zio Dee Distress Signals 2 | . . . . . 2 . . . . . Communications Jammed . | . . . . . . . . . . . Distress Signals . | . . . . . . . . . . . Times Spotted 77 | . 6 2 . 3 7 . 5 11 . 43 Peak Tracking Total 11 | . 3 1 . 3 5 1 2 3 . 11 Tactical Retreats 7 | . . . . 1 3 . . 1 . 2 Traps | -11 -10 -10 -10 -9 -8 -7 -6 -6 -6 -6 ------- Run | Yrd Mat Min Exi Min Mat Fac Fac Low Zio Dee Traps Triggered 5 | . 4 . . . . 1 . . . . Indirectly . | . . . . . . . . . . . Trap Hack Attempts . | . . . . . . . . . . . Triggered . | . . . . . . . . . . . Disarmed . | . . . . . . . . . . . Reprogrammed . | . . . . . . . . . . . Reused . | . . . . . . . . . . . Traps Extracted . | . . . . . . . . . . . Installed . | . . . . . . . . . . . Triggered 1 | . . . . . . . . 1 . . Machines | -11 -10 -10 -10 -9 -8 -7 -6 -6 -6 -6 ---------- Run | Yrd Mat Min Exi Min Mat Fac Fac Low Zio Dee Machines Disabled 9 | . . 1 . . . . . 1 3 4 Max in Single Turn 1 | . . 1 . . . . . 1 1 1 Machines Repaired . | . . . . . . . . . . . Machines Dismantled 3 | . . . . . . . . . 3 . Machines Sabotaged . | . . . . . . . . . . . Overloaded Fab Kills . | . . . . . . . . . . . Hacking | -11 -10 -10 -10 -9 -8 -7 -6 -6 -6 -6 --------- Run | Yrd Mat Min Exi Min Mat Fac Fac Low Zio Dee Machines Accessed 5 | . 1 . 4 . . . . . . . Terminals 1 | . 1 . . . . . . . . . Fabricators . | . . . . . . . . . . . Repair Stations . | . . . . . . . . . . . Recycling Units . | . . . . . . . . . . . Scanalyzers . | . . . . . . . . . . . Garrison Access . | . . . . . . . . . . . Total Hacks 50 | . 2 . 48 . . . . . . . Successful 48 | . . . 48 . . . . . . . Failed 2 | . 2 . . . . . . . . . Catastrophic 2 | . 2 . . . . . . . . . Database Lockouts . | . . . . . . . . . . . Manual 5 | . 2 . 2 . . . . . 1 . Terminals 2 | . 2 . . . . . . . . . Fabricators . | . . . . . . . . . . . Repair Stations . | . . . . . . . . . . . Recycling Units . | . . . . . . . . . . . Scanalyzers . | . . . . . . . . . . . Garrison Access . | . . . . . . . . . . . Terminal Hacks 48 | . . . 48 . . . . . . . Record 48 | . . . 48 . . . . . . . Fabricator Hacks . | . . . . . . . . . . . Repair Station Hacks . | . . . . . . . . . . . Recycling Unit Hacks . | . . . . . . . . . . . Scanalyzer . | . . . . . . . . . . . Garrison Access Hacks . | . . . . . . . . . . . Unauthorized Hacks . | . . . . . . . . . . . Terminals . | . . . . . . . . . . . Fabricators . | . . . . . . . . . . . Repair Stations . | . . . . . . . . . . . Recycling Units . | . . . . . . . . . . . Scanalyzers . | . . . . . . . . . . . Garrison Access . | . . . . . . . . . . . Data Cores Recovered . | . . . . . . . . . . . Used . | . . . . . . . . . . . Hacking Detections 1 | . 1 . . . . . . . . . Full Trace Events 1 | . 1 . . . . . . . . . Feedback Events . | . . . . . . . . . . . Feedback Blocked . | . . . . . . . . . . . Robot Schematics Acquired 4 | . . . . . . . . . 4 . Robots Built . | . . . . . . . . . . . Authchips . | . . . . . . . . . . . Time . | . . . . . . . . . . . Total Robot Build Rating . | . . . . . . . . . . . Part Schematics Acquired 14 | . . . . . . . . . 14 . Parts Built . | . . . . . . . . . . . Authchips . | . . . . . . . . . . . Time . | . . . . . . . . . . . Total Part Build Rating . | . . . . . . . . . . . Parts Repaired . | . . . . . . . . . . . Time . | . . . . . . . . . . . Parts Recycled . | . . . . . . . . . . . Recycled Matter . | . . . . . . . . . . . Retrieved Matter . | . . . . . . . . . . . Retrieved Components . | . . . . . . . . . . . Parts Scanalyzed . | . . . . . . . . . . . Part Schematics Acquired . | . . . . . . . . . . . Parts Damaged . | . . . . . . . . . . . Bothacking | -11 -10 -10 -10 -9 -8 -7 -6 -6 -6 -6 ------------ Run | Yrd Mat Min Exi Min Mat Fac Fac Low Zio Dee Used RIF Installer . | . . . . . . . . . . . Robots Hacked . | . . . . . . . . . . . Non-combat . | . . . . . . . . . . . Combat . | . . . . . . . . . . . Robot Hacks Applied . | . . . . . . . . . . . Relay Couplers Released . | . . . . . . . . . . . Fabnet Peak Effective % . | . . . . . . . . . . . Robots Rewired 1 | . . . . . . 1 . . . . Allies Hacked . | . . . . . . . . . . . Hacks Repelled . | . . . . . . . . . . . Allies | -11 -10 -10 -10 -9 -8 -7 -6 -6 -6 -6 -------- Run | Yrd Mat Min Exi Min Mat Fac Fac Low Zio Dee Total Allies 7 | . . . . 2 . 1 . . 4 . Largest Group 4 | . . . . 2 2 1 1 1 4 4 Highest-Rated Group 253 | . . . . 54 54 16 16 16 253 253 Highest-Rated Ally 96 | . . . . 31 31 16 16 16 96 96 Total Orders . | . . . . . . . . . . . Ally Attacks 139 | . . . . . 14 1 1 6 . 117 Total Damage 2274 | . . . . . 264 18 . 18 . 1974 Kills 11 | . . . . . 2 . . 1 . 8 Allies Corrupted . | . . . . . . . . . . . Allies Melted . | . . . . . . . . . . . Intel | -11 -10 -10 -10 -9 -8 -7 -6 -6 -6 -6 ------- Run | Yrd Mat Min Exi Min Mat Fac Fac Low Zio Dee Robot Analysis Total . | . . . . . . . . . . . Derelict Logs Recovered 3 | . . . . 1 . . . 1 1 . Drone Launches . | . . . . . . . . . . . Drone Recoveries . | . . . . . . . . . . . Exploration | -11 -10 -10 -10 -9 -8 -7 -6 -6 -6 -6 ------------- Run | Yrd Mat Min Exi Min Mat Fac Fac Low Zio Dee Turns Passed 5159 | 55 218 93 684 146 408 259 200 588 1250 1258 Spaces Moved 3340 | 57 162 50 484 99 238 176 136 414 835 689 Core 4 | 3 . . . . . . . . . 1 Treads . | . . . . . . . . . . . Legs . | . . . . . . . . . . . Wheels 3336 | 54 162 50 484 99 238 176 136 414 835 688 Hover . | . . . . . . . . . . . Flight . | . . . . . . . . . . . Fastest Speed 50 | 50 80 140 140 140 125 125 131 131 131 115 Average Speed 131 | 78 112 140 140 140 125 128 131 131 131 135 Slowest Speed 1400 | 80 140 140 140 140 125 140 131 131 131 1400 Overloaded Moves . | . . . . . . . . . . . Propulsion Burnouts . | . . . . . . . . . . . Robots Hopped . | . . . . . . . . . . . Cave-ins Triggered . | . . . . . . . . . . . Time Travels 1 | . . . . . . 1 . . . . Exploration Rate (%) 39 | 3 29 8 93 28 30 5 5 64 81 84 Regions Visited 10 Branch Regions 6 Pre-discovered Areas 3 | . . . 1 . . . . 1 1 . Known Exits Taken . | . . . . . . . . . . . Unknown Exits Taken 10 | 1 1 1 1 1 1 1 1 1 1 . Scrap Searched 8 | . . . . . . . . 4 4 . Spaces Dug . | . . . . . . . . . . . Terrain Destroyed 56 | . . . . . . . . 21 . 35 Melee . | . . . . . . . . . . . Projectile 45 | . . . . . . . . 21 . 24 AOE 11 | . . . . . . . . . . 11 Terrain Rammed . | . . . . . . . . . . . Walls Destroyed . | . . . . . . . . . . . Machines Disabled . | . . . . . . . . . . . Actions | -11 -10 -10 -10 -9 -8 -7 -6 -6 -6 -6 --------- Run | Yrd Mat Min Exi Min Mat Fac Fac Low Zio Dee Total 3818 | 64 180 58 491 102 326 212 153 447 921 864 Wait 102 | . 4 . 1 . 60 1 4 13 16 3 Move 3330 | 56 161 49 483 98 237 175 135 413 834 689 Hop . | . . . . . . . . . . . Pick Up 35 | 2 3 1 1 . 5 8 2 3 9 1 Fast Attach 33 | 6 1 . 2 . 5 2 3 . 3 11 Attach 26 | . . . . 2 2 2 2 1 . 17 Detach 11 | . . . 4 . 3 2 1 . 1 . Swap 25 | . 3 1 . . 3 3 1 1 7 6 Drop 43 | . . . . . . 12 2 3 13 13 Fire 141 | . 8 7 . 2 11 3 3 13 9 85 Melee 40 | . . . . . . . . . 1 39 Ram . | . . . . . . . . . . . Kick . | . . . . . . . . . . . Crush . | . . . . . . . . . . . Escape Stasis . | . . . . . . . . . . . Rewire 4 | . . . . . . 4 . . . . Trap . | . . . . . . . . . . . Miscellaneous 28 | . . . . . . . . . 28 . Route ------- -11/Scrapyard -10/Materials -10/Mines -10/Exiles -9/Mines -8/Materials -7/Factory -6/Factory -6/Lower Caves -6/Zion -6/Deep Caves (discovered 1 exit: [*Pro]) History --------- Turn | Location | Event 26 | -11/Scrapyard | Discovered new exit (range 15) 56 | -11/Scrapyard | Entered Materials 150 | -10/Materials | Discovered new exit (range 11) 274 | -10/Materials | Entered Mines 301 | -10/Mines | Build established: Mutant 358 | -10/Mines | Deemed a non-threat by the Exiles lab entrance 360 | -10/Mines | Discovered new exit (range 5) 367 | -10/Mines | Entered Exiles 403 | -10/Exiles | Met 8R-AWN 427 | -10/Exiles | Met EX-HEX 503 | -10/Exiles | Met EX-DEC 535 | -10/Exiles | Visited The Gauntlet 727 | -10/Exiles | Learned location of Zion (-6) 786 | -10/Exiles | Met EX-BIN 808 | -10/Exiles | Aligned with FarCom system 809 | -10/Exiles | Given EX-Vault access code 885 | -10/Exiles | Opened EX-Vault 888 | -10/Exiles | Found Prototype Device 892 | -10/Exiles | Found Prototype Slashing Weapon 892 | -10/Exiles | Identified Longsword +1 902 | -10/Exiles | Found Prototype Ballistic Gun 902 | -10/Exiles | Identified AWS/Gauss 935 | -10/Exiles | Warned to stay clear of 0b10 Research branches 947 | -10/Exiles | Exiles lab attacked by MAIN.C 1037 | -10/Exiles | Discovered new exit (range 10) 1051 | -10/Exiles | Stole three prototypes: AWS/Gauss, Longsword +1, Chronowheel 1051 | -10/Exiles | Entered Mines 1061 | -9/Mines | Assembled infested the area 1106 | -9/Mines | Learned Materials stockpile data 1191 | -9/Mines | Discovered new exit (range 5) 1197 | -9/Mines | Entered Materials 1197 | -8/Materials | Accompanied by 2 allies 1197 | -8/Materials | Evolved 4 slots: Propulsion x1, Utility x3 1202 | -8/Materials | Led the pair of lost Derelicts to an unsafe place 1572 | -8/Materials | Discovered new exit (range 15) 1605 | -8/Materials | Entered Factory 1605 | -7/Factory | Evolved 2 slots: Power x1, Utility x1 1607 | -7/Factory | FarCom data flow suspended 1618 | -7/Factory | Identified Chronowheel 1618 | -7/Factory | Activated Chronowheel 1618 | -7/Factory | Spacetime reconverged on an earlier point 1807 | -7/Factory | Discovered new exit (range 12) 1864 | -7/Factory | Entered another Factory area 1864 | -6/Factory | Accompanied by 1 ally 1864 | -6/Factory | Evolved 2 slots: Utility x1, Weapon x1 2011 | -6/Factory | Discovered new exit (range 16) 2064 | -6/Factory | Entered Lower Caves 2064 | -6/Lower Caves | Accompanied by 1 ally 2192 | -6/Lower Caves | Build established: Scavenger-Tank 2649 | -6/Lower Caves | A Derelict revealed a hidden shortcut to a safe place 2652 | -6/Lower Caves | Entered Zion 2701 | -6/Zion | Gained Derelict followers 2811 | -6/Zion | Visited the Megawrench Repair Shop 2811 | -6/Zion | Megawrench repaired 8 parts 3087 | -6/Zion | Learned 4 Factory zone layouts 3143 | -6/Zion | Given A8's code to call for help 3848 | -6/Zion | Discovered new exit (range 5) 3851 | -6/Zion | Saw the warning signs outside the Deep Caves entrance 3877 | -6/Zion | Enhanced Grunt warped into view, answering call for help 3877 | -6/Zion | Enhanced Grunt warped into view, answering call for help 3902 | -6/Zion | Entered Deep Caves 3902 | -6/Deep Caves | Accompanied by 4 allies 4034 | -6/Deep Caves | Z-Facility disabled 4084 | -6/Deep Caves | Attacked by Z-Imprinter 4097 | -6/Deep Caves | Destroyed Z-Imprinter 4125 | -6/Deep Caves | Found Prototype Protection 4125 | -6/Deep Caves | Identified Zio. Weapon Casing 4156 | -6/Deep Caves | Found Prototype Device 4156 | -6/Deep Caves | Identified Zio. Metafield Generator 4335 | -6/Deep Caves | AWS/Gauss suddenly broke down 4514 | -6/Deep Caves | Found Prototype Protection 4514 | -6/Deep Caves | Identified Zio. Heavy Carapace 4898 | -6/Deep Caves | Discovered new exit (range 6) 4914 | -6/Deep Caves | Spotted AG-72819 4970 | -6/Deep Caves | Exposed GOLEM chamber 4971 | -6/Deep Caves | Triggered Deep Caves wall 5022 | -6/Deep Caves | Lost 3 allies 5040 | -6/Deep Caves | Destroyed 7 combat bots 5085 | -6/Deep Caves | Core integrity fell below 50% 5129 | -6/Deep Caves | Destroyed 10 combat bots 5138 | -6/Deep Caves | Core integrity fell below 20% 5160 | -6/Deep Caves | Destroyed by as-29498 with Assembled Heavy Rifle Last Messages --------------- 05086_ Destroyed Prototype Energy Cannon. 05087_ Hpw. Tractor Beam destroyed. 05087_ Mak. Light Armor Plating destroyed. 05090_ Destroyed Prototype Device. 05094_ Destroyed Asb. Heavy Rifle. 05098_ as-92374 destroyed. 05102_ Destroyed Prototype Energy Cannon. 05103_ Arm. Huge Wheel destroyed. 05104_ Destroyed Asb. Hover Unit. 05108_ as-82582 destroyed. 05110_ Acquired 13 matter. 05112_ Com. Wheel destroyed. 05127_ Destroyed Asb. F-torch. 05129_ as-15614 destroyed. 05131_ Destroyed Asb. Hover Unit. 05133_ as-51175 destroyed. 05139_ Longsword +1 destroyed. 05140_ as-69911 destroyed. 05143_ as-89992 destroyed. 05146_ as-91955 destroyed. Map ----- +----------------------------------------------------+ | ??????????????????## #### ########## | | ???????????????????## ###?????## #### | | ????????????????????# ##?????# #### | | ????????????????????# ### #?????# | | ????????????????????# ##?# #??######### | | ????????????????????# ##??# #### ####?? | | ????????????????????# #???## ## ##? | | ????????????????????# #????## #? | | ????????????????????# ###???## ## #? | | ????????????????????# ##??## ##### ### ##? | | ????????????????????# #### ###?####?####?? | | ????????# ??????????# ##??????????? | | ???? ### ??????????# #??????????? | | ? # ??????????## #????????### | | #??????????## ### #???????## | | ???????????## ##?### #####???## | | = ??????????#### #????## ##### | | ??????????# #?????# | | #?????????# ## #????## ## | | = ! ?????????# ## #????# ## | | #????????# ## #????# ## ### | | ! #????????# ## #????# # ##?## | | = #????????# ## #????# #???## # | | #????????# ## #????# ##???#### | | #???????## ## ##???# #??????? | | #??????## @ #???# #???#### | | * ##???### ##aa#???# #?### | | [ #???# ##aa#??# ### ### | | ! ##?# ### #??# ##?## | | ! "??## ####?# #??###????## | | [] = * "############ ##?????????# | | [ %% % #?????????# | | / % %%% % #????# ### | | < # ###????# ##?## | | ###############??????## #???## | | "#????????????????????# #????# | | ###??????????????????? #????# | | # # #??????????????????? ## ##????? | | #### ?# ## #??????????????????? #?####?????? | | ???#??#??##????????????????????## ##???????????? | | ????????????????????????????????####?????????????? | | ?????????????????????????????????????????????????? | | | | | | | | | | | | | | | | | +----------------------------------------------------+ Best States ------------- Heat Dissipation 89 Energy Generation 43 Energy Capacity 325 Matter Stores 300 Matter Capacity 300 Sight Range 23 Terrain Scan Range 16 Terrain Scan Density 10 Power Amplification 20 Armor Coverage 1200 Propulsion Shielding 66 Weapon Shielding 100 Evasion (%) 44 Armor Integrity Analysis 40 Item Schematics ----------------- Thermic Laser | -6/Zion | Archive Imp. Weapon Cycler | -6/Zion | Archive Imp. Thermal Shield | -6/Zion | Archive Imp. Cryofiber Web | -6/Zion | Archive Point Defense System | -6/Zion | Archive Magnetic Acceleration Cannon | -6/Zion | Archive Centrium Wheel | -6/Zion | Archive Adv. Thermal Shield | -6/Zion | Archive Lyr. Medium Armor Plating | -6/Zion | Archive Imp. Transmission Jammer | -6/Zion | Archive Enh. Optical Array | -6/Zion | Archive Remote Force Field | -6/Zion | Archive Plasma Rifle | -6/Zion | Archive Adv. System Restoration Module | -6/Zion | Archive Robot Schematics ------------------ A-15 Conveyor | -6/Zion | Archive R-06 Scavenger | -6/Zion | Archive W-25 Informer | -6/Zion | Archive G-73 Enforcer | -6/Zion | Archive Fabricated ------------ Nothing Alien Tech Used ----------------- None Achievements -------------- None Challenges ------------ None Game ------ Seed SupercompositeCannonSystem Manual? 0 Play Time 00:46:21 Cumulative 58.1 hours Start 2024.11.02 @ 13:15:39 End 2024.11.02 @ 14:02:20 Sessions 1 Manual Loads 0 Difficulty Rogue Special Mode None Game No. 105 Rogue 105 Adventurer 0 Explorer 0 Win Type - Total 1 Types 1/0/0/0/0/0/0/0/0 Lore% 47 Gallery% 52 Achievement% 44 Wizard Run 0 Options --------- Layout 0 ASCII 0 Keyboard 1 Movement Numpad Keybinds 0 Fullscreen 2 Font 24/Terminus Map View 76x50 Zoom Use 0% Tactical HUD 1 Map Filters NONE Filters NONE Steam 1 RUN: 31fb87bb-5f46-43ec-920d-a18566921150